[Event "Turkish Women-ch Arzum 2022"]
[Site "Ayvalik"]
[Date "2022.03.11"]
[Round "9.23"]
[White "Bursali, Ela"]
[Black "Sahin, Cagla Yudum"]
[Result "1-0"]
[ECO "C54"]
[WhiteElo "1353"]
[BlackElo "1162"]
[Annotator "NA"]
[PlyCount "129"]
[EventDate "2022.03.04"]
[EventType "swiss"]
[EventCountry "TUR"]
[SourceTitle "playchess.com"]
[Source "ChessBase"]
[SourceQuality "1"]
[TimeControl "5400+30"]

1. e4 e5 2. Nf3 Nc6 3. Bc4 Bc5 4. c3 {[%emt 0:01:30]} Nf6 {[%emt 0:01:30]} 5. d3 {[%emt 0:00:00]} d6 {[%emt 0:00:30]} 6. Bb3 {[%emt 0:00:00]} Bb6 {[%emt 0:01:30]} 7. h3 {[%emt 0:00:30]} h6 {[%emt 0:00:30]} 8. Nbd2 {[%emt 0:00:00]} O-O {[%emt 0:00:30]} 9. Nf1 {[%emt 0:01:00]} Be6 {[%emt 0:03:30]} 10. Bc2 {[%emt 0:00:30]} d5 {[%emt 0:01:30]} 11. Qe2 {[%emt 0:01:30]} dxe4 {[%emt 0:05:30]} 12. dxe4 {[%emt 0:00:30]} Qe7 {[%emt 0:03:30]} 13. Ng3 {[%emt 0:01:30]} Rad8 {[%emt 0:05:30]} 14. O-O {[%emt 0:00:30]} Nd7 {[%emt 0:04:30]} 15. b3 {[%emt 0:09:30]} a6 {[%emt 0:03:30]} 16. Bb2 {[%emt 0:00:30]} Qf6 {[%emt 0:01:30]} 17. Kh2 {[%emt 0:06:30]} Ne7 {[%emt 0:10:30]} 18. Nh5 {[%emt 0:03:30]} Qg6 {[%emt 0:01:30]} 19. Nh4 {[%emt 0:00:30]} Qg5 {[%emt 0:00:30]} 20. Nf5 {[%emt 0:03:30]} Nxf5 {[%emt 0:04:30]} 21. exf5 {[%emt 0:02:30]} Bxf5 {[%emt 0:03:30]} 22. Bxf5 {[%emt 0:00:30]} Qxf5 {[%emt 0:00:00]} 23. g4 {[%emt 0:00:30]} Qe6 {[%emt 0:01:00]} 24. c4 {[%emt 0:01:30]} Bd4 {[%emt 0:06:30]} 25. Rae1 {[%emt 0:04:30]} Bxb2 {[%emt 0:00:30]} 26. Qxb2 {[%emt 0:00:00]} Nf6 {[%emt 0:04:30]} 27. Rxe5 {[%emt 0:03:00]} Qd6 {[%emt 0:00:30]} 28. c5 {[%emt 0:00:30]} Qd2 {[%emt 0:01:30]} 29. Nxf6+ {[%emt 0:03:30]} gxf6 {[%emt 0:00:00]} 30. Re2 {[%emt 0:00:30]} Qxb2 {[%emt 0:00:00]} 31. Rxb2 {[%emt 0:00:30]} Rfe8 {[%emt 0:00:30]} 32. Rc2 {[%emt 0:00:30]} Rd5 {[%emt 0:04:30]} 33. Rfc1 {[%emt 0:03:30]} Ree5 {[%emt 0:01:30]} 34. Kg3 {[%emt 0:05:30]} Rd3+ {[%emt 0:02:30]} 35. Kg2 {[%emt 0:01:30]} Kf8 {[%emt 0:01:30]} 36. Rc3 {[%emt 0:01:30]} Rd2 {[%emt 0:00:30]} 37. R3c2 {[%emt 0:00:30]} Ree2 {[%emt 0:00:30]} 38. Rxd2 {[%emt 0:01:30]} Rxd2 {[%emt 0:00:30]} 39. a4 {[%emt 0:00:30]} a5 {[%emt 0:00:30]} 40. Rc3 {[%emt 0:02:30]} Rd5 {[%emt 0:01:30]} 41. Kf3 {[%emt 0:02:30]} Ke7 {[%emt 0:00:30]} 42. Ke4 {[%emt 0:01:30]} Re5+ {[%emt 0:01:30]} 43. Kd4 {[%emt 0:01:30]} Kd7 {[%emt 0:00:30]} 44. Rf3 {[%emt 0:03:30]} Re6 {[%emt 0:00:30]} 45. Rf5 {[%emt 0:00:30]} Kc6 {[%emt 0:01:30]} 46. f3 {[%emt 0:02:30]} Kd7 {[%emt 0:01:30]} 47. Rh5 {[%emt 0:00:30]} Re1 {[%emt 0:00:30]} 48. Rxh6 {[%emt 0:00:30]} Ke7 {[%emt 0:00:30]} 49. Rh5 {[%emt 0:01:30]} Rb1 {[%emt 0:00:30]} 50. Kc4 {[%emt 0:00:30]} Rf1 {[%emt 0:01:30]} 51. Rf5 {[%emt 0:00:30]} Rh1 {[%emt 0:00:00]} 52. Kb5 {[%emt 0:00:30]} Rxh3 {[%emt 0:00:00]} 53. Kxa5 {[%emt 0:00:00]} Rh8 {[%emt 0:00:30]} 54. Kb5 {[%emt 0:00:00]} Rd8 {[%emt 0:00:30]} 55. c6 {[%emt 0:04:30]} Rb8 {[%emt 0:01:30]} 56. cxb7 {[%emt 0:00:30]} Rxb7+ {[%emt 0:00:00]} 57. Kc4 {[%emt 0:00:00]} Ke6 {[%emt 0:01:00]} 58. a5 {[%emt 0:00:00]} Ra7 {[%emt 0:00:30]} 59. b4 {[%emt 0:00:30]} Ke7 {[%emt 0:00:30]} 60. Kc5 {[%emt 0:00:30]} Ra6 {[%emt 0:00:30]} 61. Kb5 {[%emt 0:00:30]} Ra8 {[%emt 0:00:30]} 62. a6 {[%emt 0:00:00]} Ke6 {[%emt 0:00:00]} 63. Rc5 {[%emt 0:00:00]} Kd6 {[%emt 0:00:00]} 64. Rc6+ {[%emt 0:00:30]} Kd7 {[%emt 0:00:30]} 65. Rxf6 {[%emt 0:00:00]} 1-0

[Event "Turkish Women-ch Arzum 2022"]
[Site "Ayvalik"]
[Date "2022.03.11"]
[Round "9.25"]
[White "Yilmaz, Gokcen"]
[Black "Oztatar, Meleknaz"]
[Result "1-0"]
[ECO "B01"]
[WhiteElo "1647"]
[BlackElo "1063"]
[Annotator "NA"]
[PlyCount "65"]
[EventDate "2022.03.04"]
[EventType "swiss"]
[EventCountry "TUR"]
[SourceTitle "playchess.com"]
[Source "ChessBase"]
[SourceQuality "1"]
[TimeControl "5400+30"]

1. e4 d5 2. exd5 Qxd5 3. Nc3 Qa5 {[%emt 0:01:00]} 4. Bc4 {[%emt 0:02:30]} Nf6 {[%emt 0:00:00]} 5. d3 {[%emt 0:00:30]} Bf5 {[%emt 0:01:00]} 6. Bd2 {[%emt 0:00:30]} c6 {[%emt 0:01:30]} 7. Qe2 {[%emt 0:03:30]} e6 {[%emt 0:02:30]} 8. h3 {[%emt 0:02:30]} Be7 {[%emt 0:01:30]} 9. g4 {[%emt 0:00:30]} Bg6 {[%emt 0:00:00]} 10. f4 {[%emt 0:00:30]} Qc7 {[%emt 0:11:00]} 11. O-O-O {[%emt 0:07:30]} b5 {[%emt 0:03:30]} 12. Bb3 {[%emt 0:00:30]} O-O {[%emt 0:03:30]} 13. Nf3 {[%emt 0:01:30]} Rd8 {[%emt 0:04:30]} 14. Ne5 {[%emt 0:01:30]} a5 {[%emt 0:10:30]} 15. a4 {[%emt 0:03:30]} b4 {[%emt 0:01:30]} 16. Nb1 {[%emt 0:02:30]} Na6 {[%emt 0:08:30]} 17. Bc4 {[%emt 0:03:30]} Nd7 {[%emt 0:08:30]} 18. Nxg6 {[%emt 0:11:30]} hxg6 {[%emt 0:01:30]} 19. g5 {[%emt 0:01:30]} Nb6 {[%emt 0:02:30]} 20. Bxa6 {[%emt 0:05:30]} Rxa6 {[%emt 0:00:30]} 21. b3 {[%emt 0:00:00]} Nd5 {[%emt 0:02:30]} 22. Rdf1 {[%emt 0:02:00]} Bd6 {[%emt 0:01:30]} 23. Qe4 {[%emt 0:04:30]} Qb6 {[%emt 0:05:30]} 24. h4 {[%emt 0:04:30]} Bc5 {[%emt 0:02:30]} 25. h5 {[%emt 0:00:30]} Ne7 {[%emt 0:02:30]} 26. hxg6 {[%emt 0:05:30]} Nxg6 {[%emt 0:00:30]} 27. f5 {[%emt 0:00:30]} Nf8 {[%emt 0:04:30]} 28. Qh4 {[%emt 0:00:30]} f6 {[%emt 0:01:50]} 29. g6 {[%emt 0:00:30]} Nxg6 {[%emt 0:00:10]} 30. fxg6 {[%emt 0:00:00]} Kf8 {[%emt 0:00:30]} 31. Rxf6+ {[%emt 0:01:00]} Ke8 {[%emt 0:00:30]} 32. Rf7 {[%emt 0:00:30]} Bf8 {[%emt 0:00:00]} 33. Rhf1 {[%emt 0:00:30]} 1-0

[Event "Turkish Women-ch Arzum 2022"]
[Site "Ayvalik"]
[Date "2022.03.11"]
[Round "9.27"]
[White "Engel, Ecrin Tuana"]
[Black "Ozer, Melike Busra"]
[Result "1-0"]
[ECO "D02"]
[WhiteElo "1250"]
[BlackElo "1300"]
[Annotator "NA"]
[PlyCount "91"]
[EventDate "2022.03.04"]
[EventType "swiss"]
[EventCountry "TUR"]
[SourceTitle "playchess.com"]
[Source "ChessBase"]
[SourceQuality "1"]
[TimeControl "5400+30"]

1. d4 Nf6 2. Bf4 d5 3. Nf3 Bf5 {[%emt 0:02:00]} 4. e3 {[%emt 0:01:30]} e6 {[%emt 0:01:30]} 5. Bd3 {[%emt 0:00:30]} Bg6 {[%emt 0:00:30]} 6. O-O {[%emt 0:00:30]} Bd6 {[%emt 0:00:30]} 7. Bg3 {[%emt 0:00:30]} O-O {[%emt 0:00:30]} 8. c3 {[%emt 0:04:30]} Nc6 {[%emt 0:04:30]} 9. Qc2 {[%emt 0:03:30]} Ne4 {[%emt 0:04:30]} 10. Bh4 {[%emt 0:11:30]} Qd7 {[%emt 0:05:30]} 11. Ng5 {[%emt 0:05:30]} Nxg5 {[%emt 0:09:30]} 12. Bxg5 {[%emt 0:00:30]} e5 {[%emt 0:00:30]} 13. Bxg6 {[%emt 0:04:30]} fxg6 {[%emt 0:00:30]} 14. Bh4 {[%emt 0:06:30]} Ne7 {[%emt 0:06:30]} 15. Nd2 {[%emt 0:05:30]} Nf5 {[%emt 0:06:30]} 16. Bg3 {[%emt 0:01:30]} Nxg3 {[%emt 0:00:30]} 17. hxg3 {[%emt 0:00:30]} e4 {[%emt 0:00:00]} 18. Qb3 {[%emt 0:01:30]} c6 {[%emt 0:01:00]} 19. Nxe4 {[%emt 0:00:30]} Kh8 {[%emt 0:00:30]} 20. Nxd6 {[%emt 0:01:30]} Qxd6 {[%emt 0:00:00]} 21. c4 {[%emt 0:01:30]} Rf7 {[%emt 0:02:00]} 22. cxd5 {[%emt 0:00:30]} cxd5 {[%emt 0:00:30]} 23. e4 {[%emt 0:02:30]} Raf8 {[%emt 0:00:30]} 24. e5 {[%emt 0:01:30]} Qe6 {[%emt 0:00:00]} 25. f3 {[%emt 0:03:30]} Rf5 {[%emt 0:02:00]} 26. Rac1 {[%emt 0:07:30]} h5 {[%emt 0:02:30]} 27. Qxb7 {[%emt 0:02:30]} h4 {[%emt 0:01:30]} 28. Rc6 {[%emt 0:01:30]} Qe8 {[%emt 0:00:30]} 29. Rfc1 {[%emt 0:02:30]} hxg3 {[%emt 0:01:30]} 30. Rc8 {[%emt 0:06:30]} Qa4 {[%emt 0:02:30]} 31. Rxf8+ {[%emt 0:00:30]} Rxf8 {[%emt 0:00:30]} 32. Qxd5 {[%emt 0:00:30]} Kh7 {[%emt 0:00:00]} 33. Qc4 {[%emt 0:00:30]} Qa5 {[%emt 0:00:00]} 34. b4 {[%emt 0:01:30]} Qa3 {[%emt 0:01:30]} 35. Rc2 {[%emt 0:07:41]} Qe3+ {[%emt 0:10:30]} 36. Kf1 {[%emt 0:00:17]} Rxf3+ {[%emt 0:02:30]} 37. gxf3 {[%emt 0:00:42]} Qxf3+ {[%emt 0:00:30]} 38. Kg1 {[%emt 0:00:55]} g2 {[%emt 0:00:30]} 39. Rxg2 {[%emt 0:01:26]} Qe3+ {[%emt 0:00:00]} 40. Kh1 {[%emt 0:01:23]} Qe1+ {[%emt 0:00:00]} 41. Kh2 {[%emt 0:00:30]} Qh4+ {[%emt 0:00:30]} 42. Kg1 {[%emt 0:00:00]} Qe1+ {[%emt 0:00:00]} 43. Qf1 {[%emt 0:00:00]} Qe3+ {[%emt 0:00:00]} 44. Qf2 {[%emt 0:00:40]} Qc1+ {[%emt 0:00:00]} 45. Kh2 {[%emt 0:00:00]} Qh6+ {[%emt 0:00:00]} 46. Kg3 {[%emt 0:00:00]} 1-0

[Event "Turkish Women-ch Arzum 2022"]
[Site "Ayvalik"]
[Date "2022.03.11"]
[Round "9.28"]
[White "Dal, Nurseda"]
[Black "Gonultas, Bakriya Anastasiya"]
[Result "0-1"]
[ECO "C65"]
[WhiteElo "1116"]
[BlackElo "1232"]
[Annotator "NA"]
[PlyCount "62"]
[EventDate "2022.03.04"]
[EventType "swiss"]
[EventCountry "TUR"]
[SourceTitle "playchess.com"]
[Source "ChessBase"]
[SourceQuality "1"]
[TimeControl "5400+30"]

1. e4 {[%emt 0:01:00]} e5 {[%emt 0:02:00]} 2. Nf3 {[%emt 0:00:00]} Nc6 {[%emt 0:01:30]} 3. Bb5 {[%emt 0:00:00]} d6 {[%emt 0:00:00]} 4. h3 {[%emt 0:00:30]} Bd7 {[%emt 0:00:00]} 5. Nc3 {[%emt 0:01:30]} Nf6 {[%emt 0:01:30]} 6. d3 {[%emt 0:00:30]} Be7 {[%emt 0:00:30]} 7. O-O {[%emt 0:00:30]} O-O {[%emt 0:00:00]} 8. Bg5 {[%emt 0:01:30]} h6 {[%emt 0:02:00]} 9. Be3 {[%emt 0:02:30]} a6 {[%emt 0:00:30]} 10. Bxc6 {[%emt 0:00:30]} bxc6 {[%emt 0:00:30]} 11. Re1 {[%emt 0:01:30]} Be6 {[%emt 0:00:30]} 12. d4 {[%emt 0:01:30]} Nd7 {[%emt 0:03:30]} 13. dxe5 {[%emt 0:00:30]} Nxe5 {[%emt 0:00:30]} 14. Nxe5 {[%emt 0:00:00]} dxe5 {[%emt 0:00:30]} 15. Qf3 {[%emt 0:02:00]} Rb8 {[%emt 0:00:30]} 16. Red1 {[%emt 0:01:30]} Qe8 {[%emt 0:00:30]} 17. Rab1 {[%emt 0:00:30]} f5 {[%emt 0:03:30]} 18. exf5 {[%emt 0:00:30]} Bxf5 {[%emt 0:01:30]} 19. Qe2 {[%emt 0:03:30]} Bd6 {[%emt 0:00:30]} 20. Rd2 {[%emt 0:04:30]} Rf6 {[%emt 0:00:30]} 21. g4 {[%emt 0:11:30]} Qg6 {[%emt 0:07:30]} 22. Kf1 {[%emt 0:02:30]} Be4 {[%emt 0:05:30]} 23. Ba7 {[%emt 0:04:30]} Rb4 {[%emt 0:02:30]} 24. a3 {[%emt 0:01:30]} Bf3 {[%emt 0:00:30]} 25. Qxa6 {[%emt 0:01:30]} Rbf4 {[%emt 0:31:30]} 26. Be3 {[%emt 0:00:30]} Bxg4 {[%emt 0:02:30]} 27. hxg4 {[%emt 0:01:30]} Rxg4 {[%emt 0:00:30]} 28. Ke2 {[%emt 0:02:30]} Qh5 {[%emt 0:00:30]} 29. Kd3 {[%emt 0:09:30]} e4+ {[%emt 0:13:31]} 30. Kc4 {[%emt 0:02:30]} Qf7+ {[%emt 0:00:29]} 31. Kd4 {[%emt 0:01:30]} c5# {[%emt 0:00:30]} 0-1

[Event "Turkish Women-ch Arzum 2022"]
[Site "Ayvalik"]
[Date "2022.03.11"]
[Round "9.29"]
[White "Topal, Berfin"]
[Black "Kalyoncu, Beren"]
[Result "1/2-1/2"]
[ECO "D04"]
[WhiteElo "1322"]
[BlackElo "1228"]
[Annotator "NA"]
[PlyCount "134"]
[EventDate "2022.03.04"]
[EventType "swiss"]
[EventCountry "TUR"]
[SourceTitle "playchess.com"]
[Source "ChessBase"]
[SourceQuality "1"]
[TimeControl "5400+30"]

1. d4 Nf6 2. Nf3 {[%emt 0:00:30]} g6 {[%emt 0:02:30]} 3. e3 {[%emt 0:00:30]} d5 {[%emt 0:00:30]} 4. Bd3 {[%emt 0:00:30]} Bg7 {[%emt 0:00:30]} 5. Nbd2 {[%emt 0:00:00]} O-O {[%emt 0:02:30]} 6. b3 {[%emt 0:00:00]} Nbd7 {[%emt 0:03:30]} 7. Bb2 {[%emt 0:00:30]} b6 {[%emt 0:01:30]} 8. O-O {[%emt 0:00:30]} Bb7 {[%emt 0:00:30]} 9. Re1 {[%emt 0:00:00]} Ne4 {[%emt 0:01:30]} 10. c4 {[%emt 0:03:00]} e6 {[%emt 0:01:30]} 11. Rc1 {[%emt 0:04:30]} f5 {[%emt 0:08:30]} 12. Qc2 {[%emt 0:02:30]} c6 {[%emt 0:04:30]} 13. cxd5 {[%emt 0:01:30]} exd5 {[%emt 0:00:30]} 14. Ne5 {[%emt 0:02:30]} Rc8 {[%emt 0:03:30]} 15. f3 {[%emt 0:02:30]} Ng5 {[%emt 0:09:30]} 16. Nxd7 {[%emt 0:07:30]} Qxd7 {[%emt 0:00:30]} 17. f4 {[%emt 0:03:30]} Ne4 {[%emt 0:02:30]} 18. Bxe4 {[%emt 0:04:30]} fxe4 {[%emt 0:00:30]} 19. Nf1 {[%emt 0:03:30]} Bf6 {[%emt 0:20:30]} 20. g3 {[%emt 0:06:30]} Be7 {[%emt 0:02:30]} 21. Qc3 {[%emt 0:02:30]} Qg4 {[%emt 0:03:30]} 22. Qd2 {[%emt 0:01:30]} h5 {[%emt 0:08:30]} 23. Qe2 {[%emt 0:02:30]} Qf5 {[%emt 0:02:30]} 24. h4 {[%emt 0:03:30]} Rc7 {[%emt 0:04:59]} 25. Nh2 {[%emt 0:04:30]} Qc8 {[%emt 0:06:59]} 26. Rc2 {[%emt 0:01:30]} Ba6 {[%emt 0:00:35]} 27. Qd2 {[%emt 0:01:30]} Bd3 {[%emt 0:01:08]} 28. Rcc1 {[%emt 0:00:00]} Rf7 {[%emt 0:05:51]} 29. Kg2 {[%emt 0:06:00]} Qd7 {[%emt 0:02:48]} 30. Kg1 {[%emt 0:01:30]} Qh3 {[%emt 0:00:33]} 31. Qg2 {[%emt 0:01:30]} Qxg2+ {[%emt 0:00:30]} 32. Kxg2 {[%emt 0:00:00]} Rf8 {[%emt 0:00:35]} 33. a3 {[%emt 0:01:00]} Rb8 {[%emt 0:00:59]} 34. Nf1 {[%emt 0:00:30]} Bxf1+ {[%emt 0:00:17]} 35. Kxf1 {[%emt 0:00:30]} Rbc8 {[%emt 0:00:13]} 36. Rc2 {[%emt 0:01:30]} Kf7 {[%emt 0:00:30]} 37. Rec1 {[%emt 0:00:30]} Ke6 {[%emt 0:00:31]} 38. Ke2 {[%emt 0:00:00]} Kf5 {[%emt 0:00:43]} 39. Kf2 {[%emt 0:00:00]} Kg4 {[%emt 0:00:21]} 40. Kg2 {[%emt 0:00:30]} Bd6 {[%emt 0:00:25]} 41. Kf2 {[%emt 0:00:30]} a5 {[%emt 0:00:15]} 42. a4 {[%emt 0:00:30]} Be7 {[%emt 0:01:08]} 43. Kg2 {[%emt 0:00:30]} Bb4 {[%emt 0:00:00]} 44. Bc3 {[%emt 0:00:00]} Bxc3 {[%emt 0:00:37]} 45. Rxc3 {[%emt 0:00:00]} c5 {[%emt 0:00:30]} 46. R3c2 {[%emt 0:00:30]} Rc6 {[%emt 0:00:23]} 47. Rc3 {[%emt 0:00:30]} R8c7 {[%emt 0:00:46]} 48. R3c2 {[%emt 0:00:30]} c4 {[%emt 0:00:19]} 49. bxc4 {[%emt 0:01:30]} Rxc4 {[%emt 0:00:30]} 50. Rxc4 {[%emt 0:00:30]} Rxc4 {[%emt 0:00:00]} 51. Rxc4 {[%emt 0:00:00]} dxc4 {[%emt 0:00:18]} 52. Kf2 {[%emt 0:00:00]} Kf5 {[%emt 0:00:45]} 53. Ke2 {[%emt 0:00:30]} Ke6 {[%emt 0:00:24]} 54. Kd2 {[%emt 0:00:30]} Kd6 {[%emt 0:00:10]} 55. Kc3 {[%emt 0:00:00]} Kd5 {[%emt 0:00:30]} 56. Kc2 {[%emt 0:00:00]} Ke6 {[%emt 0:01:17]} 57. Kc3 {[%emt 0:00:00]} Kd5 {[%emt 0:00:30]} 58. Kc2 {[%emt 0:00:00]} Kd6 {[%emt 0:00:01]} 59. Kc3 {[%emt 0:00:30]} Kd5 {[%emt 0:00:30]} 60. Kc2 {[%emt 0:00:00]} Kc6 {[%emt 0:00:52]} 61. Kc3 {[%emt 0:00:00]} b5 {[%emt 0:00:01]} 62. d5+ {[%emt 0:00:30]} Kxd5 {[%emt 0:00:30]} 63. axb5 {[%emt 0:00:00]} Kc5 {[%emt 0:00:23]} 64. b6 {[%emt 0:00:00]} Kxb6 {[%emt 0:00:30]} 65. Kxc4 {[%emt 0:00:30]} a4 {[%emt 0:00:30]} 66. Kb4 {[%emt 0:00:00]} a3 {[%emt 0:00:00]} 67. Kxa3 {[%emt 0:00:00]} Ka5 {[%emt 0:00:38]} 1/2-1/2

[Event "Turkish Women-ch Arzum 2022"]
[Site "Ayvalik"]
[Date "2022.03.11"]
[Round "9.33"]
[White "Ozturk, Busra"]
[Black "Aksoy, Duru"]
[Result "0-1"]
[ECO "B34"]
[WhiteElo "1100"]
[BlackElo "1223"]
[Annotator "NA"]
[PlyCount "78"]
[EventDate "2022.03.04"]
[EventType "swiss"]
[EventCountry "TUR"]
[SourceTitle "playchess.com"]
[Source "ChessBase"]
[SourceQuality "1"]
[TimeControl "5400+30"]

1. e4 {[%emt 0:02:00]} c5 {[%emt 0:01:00]} 2. Nf3 {[%emt 0:01:30]} g6 {[%emt 0:00:30]} 3. d4 {[%emt 0:00:30]} cxd4 {[%emt 0:00:30]} 4. Nxd4 {[%emt 0:00:00]} Nf6 {[%emt 0:00:00]} 5. Nc3 {[%emt 0:00:00]} Nc6 {[%emt 0:00:00]} 6. Bg5 {[%emt 0:01:30]} Bg7 {[%emt 0:00:30]} 7. e5 {[%emt 0:02:30]} Nxe5 {[%emt 0:03:30]} 8. f4 {[%emt 0:07:30]} Nc6 {[%emt 0:02:30]} 9. Qd3 {[%emt 0:01:30]} O-O {[%emt 0:04:30]} 10. O-O-O {[%emt 0:00:30]} Nxd4 {[%emt 0:04:30]} 11. Qxd4 {[%emt 0:01:30]} Ng4 {[%emt 0:00:30]} 12. Qd2 {[%emt 0:00:30]} d6 {[%emt 0:09:30]} 13. h3 {[%emt 0:00:30]} Nf6 {[%emt 0:00:30]} 14. g4 {[%emt 0:03:30]} Bd7 {[%emt 0:02:30]} 15. Bd3 {[%emt 0:01:30]} Qb6 {[%emt 0:04:30]} 16. Qg2 {[%emt 0:06:30]} Bc6 {[%emt 0:04:30]} 17. Be4 {[%emt 0:04:30]} Nxe4 {[%emt 0:03:30]} 18. Nxe4 {[%emt 0:00:30]} Bxb2+ {[%emt 0:00:30]} 19. Kd2 {[%emt 0:02:30]} Qd4+ {[%emt 0:00:30]} 20. Ke2 {[%emt 0:01:30]} Bb5+ {[%emt 0:02:30]} 21. Kf3 {[%emt 0:01:30]} Qa4 {[%emt 0:02:30]} 22. c3 {[%emt 0:02:30]} Bc6 {[%emt 0:00:30]} 23. Rd4 {[%emt 0:02:30]} Qb5 {[%emt 0:04:30]} 24. Rb1 {[%emt 0:02:30]} Bxe4+ {[%emt 0:02:30]} 25. Rxe4 {[%emt 0:03:30]} Qd3+ {[%emt 0:00:30]} 26. Re3 {[%emt 0:00:30]} Qxb1 {[%emt 0:00:30]} 27. f5 {[%emt 0:00:00]} Rac8 {[%emt 0:03:30]} 28. Qd2 {[%emt 0:02:00]} Bc1 {[%emt 0:03:30]} 29. Qd4 {[%emt 0:04:30]} Bxe3 {[%emt 0:01:30]} 30. Bxe3 {[%emt 0:00:30]} Qc2 {[%emt 0:00:30]} 31. Kg3 {[%emt 0:04:30]} Qxc3 {[%emt 0:01:30]} 32. Qf4 {[%emt 0:01:30]} Qe5 {[%emt 0:00:30]} 33. Kh4 {[%emt 0:04:30]} Qxf4 {[%emt 0:01:30]} 34. Bxf4 {[%emt 0:00:30]} gxf5 {[%emt 0:00:30]} 35. g5 {[%emt 0:01:30]} Rc4 {[%emt 0:00:30]} 36. Kg3 {[%emt 0:03:30]} Rxf4 {[%emt 0:00:30]} 37. Kxf4 {[%emt 0:00:30]} e5+ {[%emt 0:00:30]} 38. Kxf5 {[%emt 0:00:30]} Re8 {[%emt 0:00:30]} 39. h4 {[%emt 0:00:00]} e4 {[%emt 0:00:00]} 0-1